fUST/lending_fUST_20260616
["ID","MTS","AMOUNT","RATE_DAILY","PERIOD"]
[425213094,1781595046000,-566.0,0.00013806,2]
[425213095,1781595046000,-566.0,0.00013806,2]
[425213057,1781595046000,-500.0,0.00013806,2]
[425213090,1781595046000,-566.0,0.00013806,2]
[425213081,1781595046000,-500.0,0.00013806,2]
[425213088,1781595046000,-337.40542883,0.00013806,2]
[425213084,1781595046000,-500.0,0.00013806,2]
[425213077,1781595046000,-500.0,0.00013806,2]
[425213058,1781595046000,-500.0,0.00013806,2]
[425213065,1781595046000,-617.63378965,0.00013806,2]
[425213069,1781595046000,-520.60168371,0.00013806,2]
[425213064,1781595046000,-500.0,0.00013806,2]
[425213068,1781595046000,-500.0,0.00013806,2]
[425213072,1781595046000,-500.0,0.00013806,2]
[425213066,1781595046000,-500.0,0.00013806,2]
[425213060,1781595046000,-170.33987486,0.00013806,2]
[425213070,1781595046000,-500.0,0.00013806,2]
[425213073,1781595046000,-500.0,0.00013806,2]
[425213074,1781595046000,-500.0,0.00013806,2]
[425213071,1781595046000,-500.0,0.00013806,2]
[425213076,1781595046000,-500.0,0.00013806,2]
[425213075,1781595046000,-500.0,0.00013806,2]
[425213067,1781595046000,-500.0,0.00013806,2]
[425213139,1781595047000,-651.92,0.0001408,2]
[425213119,1781595047000,-500.0,0.00013972,2]
[425213120,1781595047000,-500.0,0.00013982,2]
[425213123,1781595047000,-500.0,0.00013982,2]
[425213121,1781595047000,-500.0,0.00013982,2]
[425213122,1781595047000,-500.0,0.00013982,2]
[425213126,1781595047000,-500.0,0.0001408,2]
[425213125,1781595047000,-500.0,0.0001408,2]
[425213128,1781595047000,-500.0,0.0001408,2]
[425213127,1781595047000,-500.0,0.0001408,2]
[425213124,1781595047000,-627.22221485,0.00013982,2]
[425213130,1781595047000,-500.0,0.0001408,2]
[425213132,1781595047000,-500.0,0.0001408,2]
[425213131,1781595047000,-500.0,0.0001408,2]
[425213134,1781595047000,-500.0,0.0001408,2]
[425213117,1781595047000,-1247.1207794,0.00013811,2]
[425213118,1781595047000,-2592.0164498,0.00013811,2]
[425213113,1781595047000,-500.0,0.00013806,2]
[425213101,1781595047000,-566.0,0.00013806,2]
[425213112,1781595047000,-575.98912916,0.00013806,2]
[425213136,1781595047000,-500.0,0.0001408,2]
[425213103,1781595047000,-566.0,0.00013806,2]
[425213102,1781595047000,-566.0,0.00013806,2]
[425213100,1781595047000,-566.0,0.00013806,2]
[425213097,1781595047000,-566.0,0.00013806,2]
[425213099,1781595047000,-566.0,0.00013806,2]
[425213098,1781595047000,-566.0,0.00013806,2]
[425213105,1781595047000,-566.0,0.00013806,2]
[425213104,1781595047000,-566.0,0.00013806,2]
[425213116,1781595047000,-500.0,0.00013811,2]
[425213115,1781595047000,-651.92,0.00013806,2]
[425213106,1781595047000,-566.0,0.00013806,2]
[425213108,1781595047000,-500.0,0.00013806,2]
[425213107,1781595047000,-566.0,0.00013806,2]
[425213109,1781595047000,-566.0,0.00013806,2]
[425213111,1781595047000,-566.0,0.00013806,2]
[425213114,1781595047000,-500.0,0.00013806,2]
[425213110,1781595047000,-566.0,0.00013806,2]
[425213135,1781595047000,-500.0,0.0001408,2]
[425213173,1781595047000,-500.0,0.00014669,2]
[425213137,1781595047000,-500.0,0.0001408,2]
[425213161,1781595047000,-500.0,0.00014627,2]
[425213163,1781595047000,-500.0,0.00014627,2]
[425213159,1781595047000,-543.04333305,0.00014397,2]
[425213160,1781595047000,-500.0,0.0001452,2]
[425213158,1781595047000,-155.54626138,0.00014397,7]
[425213162,1781595047000,-500.0,0.00014627,2]
[425213138,1781595047000,-500.0,0.0001408,2]
[425213156,1781595047000,-651.92,0.00014353,2]
[425213168,1781595047000,-500.0,0.00014627,2]
[425213171,1781595047000,-651.92,0.00014627,2]
[425213170,1781595047000,-500.0,0.00014627,2]
[425213174,1781595047000,-306.32293867,0.000148,2]
[425213172,1781595047000,-637.26772582,0.00014633,2]
[425213177,1781595047000,-34364.22511409,0.000149,3]
[425213175,1781595047000,-3286.16346072,0.000149,3]
[425213176,1781595047000,-2230.69998992,0.000149,3]
[425213169,1781595047000,-500.0,0.00014627,2]
[425213157,1781595047000,-500.0,0.00014359,2]
[425213167,1781595047000,-500.0,0.00014627,2]
[425213166,1781595047000,-500.0,0.00014627,2]
[425213151,1781595047000,-500.0,0.00014353,2]
[425213152,1781595047000,-500.0,0.00014353,2]
[425213141,1781595047000,-184.361655,0.00014227,2]
[425213142,1781595047000,-500.0,0.00014246,2]
[425213143,1781595047000,-306.32293867,0.00014288,2]
[425213140,1781595047000,-500.0,0.00014085,2]
[425213144,1781595047000,-500.0,0.00014353,2]
[425213147,1781595047000,-500.0,0.00014353,2]
[425213149,1781595047000,-500.0,0.00014353,2]
[425213146,1781595047000,-500.0,0.00014353,2]
[425213145,1781595047000,-500.0,0.00014353,2]
[425213148,1781595047000,-515.14270241,0.00014353,2]
[425213150,1781595047000,-500.0,0.00014353,2]
[425213155,1781595047000,-624.3157937,0.00014353,2]
[425213153,1781595047000,-500.0,0.00014353,2]
[425213164,1781595047000,-264.776953,0.00014627,2]
[425213165,1781595047000,-500.0,0.00014627,2]
[425213154,1781595047000,-500.0,0.00014353,2]
[425213183,1781595048000,-178391.59014029,0.000149,3]
[425213184,1781595048000,-11112.16742449,0.000149,3]
[425213182,1781595048000,-500.0,0.00014794,2]
[425213290,1781595823000,100000.0,0.00023099,30]
[425213292,1781595831000,50000.0,0.00023099,30]
[425213310,1781595956000,10000.0,0.00023099,30]
[425213312,1781595983000,90000.0,0.00023099,30]
[425213336,1781596232000,-877.13926924,0.00012237,13]
[425213337,1781596232000,-2763.86073076,0.00012237,13]
[425213346,1781596232000,-500.0,0.00013499,2]
[425213343,1781596232000,-300.0,0.00013498,2]
[425213340,1781596232000,-465.47474215,0.00012361,13]
[425213342,1781596232000,-2807.83835616,0.000134,2]
[425213344,1781596232000,-500.0,0.00013499,2]
[425213341,1781596232000,-2545.86691135,0.00012361,13]
[425213339,1781596232000,-307.64723082,0.00012361,13]
[425213338,1781596232000,-801.95797599,0.00012361,13]
[425213345,1781596232000,-516.8222038,0.00013499,2]
[425213353,1781596232000,-628.50885593,0.00013499,2]
[425213356,1781596232000,-534.86902104,0.00013499,2]
[425213359,1781596232000,-697.03980434,0.000135,3]
[425213358,1781596232000,-2395.33500907,0.000135,3]
[425213351,1781596232000,-500.0,0.00013499,2]
[425213350,1781596232000,-500.0,0.00013499,2]
[425213354,1781596232000,-500.0,0.00013499,2]
[425213347,1781596232000,-500.0,0.00013499,2]
[425213349,1781596232000,-500.0,0.00013499,2]
[425213357,1781596232000,-2570.9972276,0.000135,3]
[425213355,1781596232000,-500.0,0.00013499,2]
[425213348,1781596232000,-500.0,0.00013499,2]
[425213352,1781596232000,-500.0,0.00013499,2]
[425213361,1781596238000,-13481.70208891,0.000135,3]
[425213372,1781596240000,-343.0,0.000135,3]
[425213414,1781596563000,170.0,0.00024658,120]
[425213488,1781597440000,-38494.84754529,0.00012,2]
[425213495,1781597440000,-500.0,0.00013698,2]
[425213490,1781597440000,-3099.05983732,0.000135,3]
[425213496,1781597440000,-500.0,0.00013698,2]
[425213486,1781597440000,-446.3135782,0.00011999,2]
[425213493,1781597440000,-417.15472785,0.000135,3]
[425213505,1781597440000,-500.0,0.00013972,2]
[425213499,1781597440000,-500.0,0.00013698,2]
[425213506,1781597440000,-500.0,0.00013972,2]
[425213500,1781597440000,-347.18905675,0.00013698,2]
[425213507,1781597440000,-379.73595436,0.00013972,2]
[425213494,1781597440000,-167.07,0.00013698,2]
[425213498,1781597440000,-500.0,0.00013698,2]
[425213492,1781597440000,-10208.29818995,0.000135,3]
[425213483,1781597440000,-420.0,0.00010999,2]
[425213489,1781597440000,-2456.85856164,0.00013072,2]
[425213497,1781597440000,-500.0,0.00013698,2]
[425213487,1781597440000,-236.50098399,0.00011999,2]
[425213485,1781597440000,-200.0,0.00011857,2]
[425213484,1781597440000,-161.32004375,0.00010999,2]
[425213501,1781597440000,-500.0,0.00013698,2]
[425213481,1781597440000,-4275.0,0.0001,2]
[425213482,1781597440000,-12257.3705956,0.00010982,2]
[425213480,1781597440000,-102.31617769,0.0001,2]
[425213479,1781597440000,-576.7340327,0.0001,2]
[425213477,1781597440000,-510.18712897,0.0001,2]
[425213478,1781597440000,-215.08095502,0.0001,2]
[425213476,1781597440000,-300.0,9.999e-05,2]
[425213491,1781597440000,-2923.86707462,0.000135,3]
[425213509,1781597440000,-249.66709781,0.00013972,2]
[425213508,1781597440000,-311.48812684,0.00013972,2]
[425213510,1781597440000,-500.0,0.00013972,2]
[425213541,1781597440000,-500.0,0.00014905,2]
[425213540,1781597440000,-500.0,0.00014905,2]
[425213539,1781597440000,-262.19458973,0.00014905,2]
[425213537,1781597440000,-543.27,0.00014794,2]
[425213538,1781597440000,-184.361655,0.00014796,2]
[425213531,1781597440000,-324.00691302,0.00014617,2]
[425213530,1781597440000,-2879.3529219,0.00014587,2]
[425213502,1781597440000,-644.64628984,0.00013698,2]
[425213533,1781597440000,-500.0,0.00014792,2]
[425213535,1781597440000,-500.0,0.00014794,2]
[425213528,1781597440000,-152.74935992,0.0001452,2]
[425213529,1781597440000,-2456.85856161,0.00014541,2]
[425213527,1781597440000,-543.27,0.0001452,2]
[425213526,1781597440000,-641.74577583,0.0001452,2]
[425213521,1781597440000,-543.27,0.00014246,2]
[425213525,1781597440000,-500.0,0.0001452,2]
[425213519,1781597440000,-500.0,0.00014246,2]
[425213517,1781597440000,-997.51532605,0.00014209,2]
[425213511,1781597440000,-543.27,0.00013972,2]
[425213504,1781597440000,-500.0,0.00013698,2]
[425213523,1781597440000,-865.46,0.00014352,2]
[425213512,1781597440000,-500.0,0.00013972,2]
[425213524,1781597440000,-283.50604889,0.00014353,2]
[425213503,1781597440000,-543.27,0.00013698,2]
[425213516,1781597440000,-639.04885753,0.00014209,2]
[425213514,1781597440000,-199.70276798,0.00014209,2]
[425213518,1781597440000,-252.06,0.00014246,2]
[425213522,1781597440000,-500.0,0.00014246,2]
[425213520,1781597440000,-500.0,0.00014246,2]
[425213515,1781597440000,-359.46498236,0.00014209,2]
[425213513,1781597440000,-199.92191,0.00014,2]
[425213552,1781597441000,-151.5,0.00015066,2]
[425213554,1781597441000,-543.27,0.00015068,2]
[425213563,1781597441000,-500.0,0.00015616,2]
[425213556,1781597441000,-276.64,0.0001523,3]
[425213559,1781597441000,-500.0,0.0001534,2]
[425213562,1781597441000,-500.0,0.00015614,2]
[425213550,1781597441000,-335.06320215,0.00014956,2]
[425213551,1781597441000,-500.0,0.00015066,2]
[425213543,1781597441000,-500.0,0.00014905,2]
[425213560,1781597441000,-500.0,0.00015342,2]
[425213544,1781597441000,-500.0,0.00014905,2]
[425213545,1781597441000,-500.0,0.00014905,2]
[425213542,1781597441000,-500.0,0.00014905,2]
[425213546,1781597441000,-500.0,0.00014905,2]
[425213549,1781597441000,-1022.79793115,0.00014906,2]
[425213548,1781597441000,-300.0,0.00014905,2]
[425213547,1781597441000,-641.75921353,0.00014905,2]
[425213558,1781597441000,-151.0,0.0001523,2]
[425213568,1781597441000,-1291.21217392,0.00015744,2]
[425213561,1781597441000,-543.27,0.00015342,2]
[425213555,1781597441000,-159.127934,0.00015068,2]
[425213578,1781597441000,-118.70186477,0.00015888,2]
[425213577,1781597441000,-184.361655,0.00015834,2]
[425213573,1781597441000,-1873.928887,0.00015783,2]
[425213570,1781597441000,-2902.32216394,0.00015744,2]
[425213574,1781597441000,-160.0,0.00015783,2]
[425213569,1781597441000,-2017.51902176,0.00015744,2]
[425213572,1781597441000,-1016.964443,0.00015783,2]
[425213571,1781597441000,-160.0,0.00015783,2]
[425213566,1781597441000,-403.50380435,0.00015744,2]
[425213575,1781597441000,-3300.897493,0.00015783,2]
[425213576,1781597441000,-6441.794987,0.00015783,2]
[425213564,1781597441000,-426.19359128,0.00015616,2]
[425213565,1781597441000,-117.07640872,0.00015616,2]
[425213553,1781597441000,-500.0,0.00015068,2]
[425213567,1781597441000,-726.30684783,0.00015744,2]
[425213557,1781597441000,-829.92,0.0001523,3]
[425213625,1781597444000,-3000.0,0.0001625,2]
[425213624,1781597444000,-3000.0,0.0001624,2]
[425213621,1781597444000,-3000.0,0.0001622,2]
[425213616,1781597444000,-3000.0,0.0001619,2]
[425213622,1781597444000,-3000.0,0.0001623,2]
[425213614,1781597444000,-3000.0,0.0001618,2]
[425213620,1781597444000,-3000.0,0.0001621,2]
[425213623,1781597444000,-292.214516,0.0001623,2]
[425213627,1781597444000,-3000.0,0.0001627,2]
[425213612,1781597444000,-3000.0,0.0001617,2]
[425213636,1781597444000,-3000.0,0.0001635,2]
[425213631,1781597444000,-3000.0,0.000163,2]
[425213635,1781597444000,-3000.0,0.0001634,2]
[425213628,1781597444000,-206.350632,0.00016272,2]
[425213629,1781597444000,-3000.0,0.0001628,2]
[425213638,1781597444000,-3000.0,0.0001637,2]
[425213637,1781597444000,-3000.0,0.0001636,2]
[425213633,1781597444000,-3000.0,0.0001632,2]
[425213634,1781597444000,-3000.0,0.0001633,2]
[425213618,1781597444000,-3000.0,0.000162,2]
[425213632,1781597444000,-3000.0,0.0001631,2]
[425213630,1781597444000,-3000.0,0.0001629,2]
[425213639,1781597444000,-3000.0,0.0001638,2]
[425213646,1781597444000,-1196.76894607,0.00016572,2]
[425213626,1781597444000,-3000.0,0.0001626,2]
[425213611,1781597444000,-543.27,0.00016164,2]
[425213597,1781597444000,-3000.0,0.0001612,2]
[425213609,1781597444000,-3000.0,0.0001616,2]
[425213645,1781597444000,-673.18253217,0.00016572,2]
[425213585,1781597444000,-381.29813523,0.00015888,2]
[425213592,1781597444000,-396.17323064,0.00015909,2]
[425213586,1781597444000,-151.0,0.00015888,2]
[425213596,1781597444000,-3000.0,0.0001611,2]
[425213595,1781597444000,-3000.0,0.000161,2]
[425213593,1781597444000,-160.0,0.00016,3]
[425213594,1781597444000,-2456.85856161,0.00016009,2]
[425213587,1781597444000,-597.44269035,0.0001589,2]
[425213590,1781597444000,-222.07908825,0.00015909,2]
[425213588,1781597444000,-543.27,0.0001589,2]
[425213610,1781597444000,-500.0,0.00016162,2]
[425213591,1781597444000,-253.80467228,0.00015909,2]
[425213598,1781597444000,-1840.0,0.00016123,2]
[425213600,1781597444000,-445.0,0.00016123,2]
[425213599,1781597444000,-1418.0,0.00016123,2]
[425213601,1781597444000,-186.134,0.00016123,2]
[425213602,1781597444000,-3000.0,0.0001613,2]
[425213607,1781597444000,-3000.0,0.0001615,2]
[425213605,1781597444000,-257.938287,0.00016145,2]
[425213606,1781597444000,-355.876575,0.00016145,2]
[425213603,1781597444000,-3000.0,0.0001614,2]
[425213604,1781597444000,-160.0,0.00016145,2]
[425213608,1781597444000,-151.0,0.0001615,2]
[425213589,1781597444000,-505.75454078,0.00015909,2]
[425213640,1781597444000,-5385.175773,0.0001639,2]
[425213641,1781597444000,-500.0,0.00016436,2]
[425213699,1781597444000,-610.178666,0.00018151,2]
[425213685,1781597444000,-1172.19278259,0.000175,2]
[425213675,1781597444000,-543.27,0.0001726,2]
[425213684,1781597444000,-1500.86186975,0.000175,2]
[425213673,1781597444000,-160.0,0.00017122,2]
[425213676,1781597444000,-161.47,0.00017274,2]
[425213683,1781597444000,-2456.85856161,0.00017478,2]
[425213677,1781597444000,-1500.86186975,0.000173,2]
[425213678,1781597444000,-1172.19278259,0.000173,2]
[425213682,1781597444000,-180.02700405,0.00017475,2]
[425213681,1781597444000,-7394.010385,0.00017434,2]
[425213679,1781597444000,-175.253,0.00017367,2]
[425213688,1781597444000,-1500.86186975,0.000176,2]
[425213686,1781597444000,-500.0,0.00017532,2]
[425213689,1781597444000,-1172.19278259,0.000176,2]
[425213690,1781597444000,-1500.86186975,0.000178,2]
[425213691,1781597444000,-1172.19278259,0.000178,2]
[425213694,1781597444000,-184.361655,0.0001791,2]
[425213692,1781597444000,-500.0,0.00017806,2]
[425213687,1781597444000,-543.27,0.00017534,2]
[425213693,1781597444000,-543.27,0.00017808,2]
[425213697,1781597444000,-543.27,0.00018082,2]
[425213696,1781597444000,-500.0,0.0001808,2]
[425213695,1781597444000,-1500.86186975,0.00018,2]
[425213698,1781597444000,-200.0,0.000181,2]
[425213643,1781597444000,-187.78006524,0.00016529,2]
[425213674,1781597444000,-500.0,0.00017258,2]
[425213666,1781597444000,-1500.86186975,0.000171,2]
[425213680,1781597444000,-535.82037,0.00017412,2]
[425213668,1781597444000,-160.0,0.00017122,2]
[425213644,1781597444000,-373.99029565,0.00016572,2]
[425213647,1781597444000,-1868.08152676,0.00016572,2]
[425213642,1781597444000,-543.27,0.00016438,2]
[425213671,1781597444000,-769.86702256,0.00017122,2]
[425213657,1781597444000,-159.56,0.00016821,2]
[425213655,1781597444000,-543.27,0.00016712,2]
[425213658,1781597444000,-184.361655,0.00016872,2]
[425213648,1781597444000,-1830.535999,0.00016573,2]
[425213656,1781597444000,-391.77837446,0.00016747,2]
[425213659,1781597444000,-159.82,0.00016899,2]
[425213650,1781597444000,-160.0,0.00016583,2]
[425213660,1781597444000,-464.288918,0.00016952,2]
[425213651,1781597444000,-297.677983,0.00016583,2]
[425213649,1781597444000,-5941.615489,0.00016573,2]
[425213652,1781597444000,-435.355967,0.00016583,2]
[425213654,1781597444000,-500.0,0.0001671,2]
[425213669,1781597444000,-160.0,0.00017122,2]
[425213670,1781597444000,-160.0,0.00017122,2]
[425213665,1781597444000,-287.532337,0.00017096,2]
[425213672,1781597444000,-160.0,0.00017122,2]
[425213667,1781597444000,-1172.19278259,0.000171,2]
[425213662,1781597444000,-543.27,0.00016986,2]
[425213663,1781597444000,-160.34,0.00017058,2]
[425213661,1781597444000,-500.0,0.00016984,2]
[425213653,1781597444000,-553.28,0.000166,3]
[425213664,1781597444000,-332.52247304,0.00017077,2]
[425213714,1781597445000,-543.27,0.00018904,2]
[425213711,1781597445000,-1500.86186975,0.000187,2]
[425213723,1781597445000,-445.0,0.00019123,2]
[425213713,1781597445000,-500.0,0.00018902,2]
[425213717,1781597445000,-152.85,0.00019003,2]
[425213716,1781597445000,-384.68603681,0.00018972,2]
[425213722,1781597445000,-1418.0,0.00019123,2]
[425213712,1781597445000,-301.2,0.00018874,2]
[425213705,1781597445000,-543.27,0.00018356,2]
[425213710,1781597445000,-543.27,0.0001863,2]
[425213708,1781597445000,-1500.86186975,0.000185,2]
[425213706,1781597445000,-221.0,0.00018356,3]
[425213704,1781597445000,-500.0,0.00018354,2]
[425213703,1781597445000,-12323.350643,0.0001834,2]
[425213701,1781597445000,-1500.86186975,0.000182,2]
[425213702,1781597445000,-1500.297038,0.00018305,2]
[425213700,1781597445000,-1980.538496,0.00018151,2]
[425213715,1781597445000,-2456.85856161,0.00018946,2]
[425213709,1781597445000,-500.0,0.00018628,2]
[425213720,1781597445000,-200.0,0.000191,2]
[425213707,1781597445000,-1500.86186975,0.000184,2]
[425213718,1781597445000,-178.60679,0.0001907,2]
[425213741,1781597445000,-201795.41367592,0.0002,2]
[425213740,1781597445000,-273.71650515,0.00019999,4]
[425213738,1781597445000,-200.0,0.00019852,2]
[425213737,1781597445000,-214.07350825,0.000198,2]
[425213734,1781597445000,-151.0,0.000196,2]
[425213728,1781597445000,-334.46,0.00019178,2]
[425213730,1781597445000,-500.0,0.0001945,2]
[425213739,1781597445000,-160.0,0.0001987,3]
[425213729,1781597445000,-10804.63472,0.00019293,2]
[425213732,1781597445000,-300.0,0.00019589,3]
[425213726,1781597445000,-430.5498,0.00019178,2]
[425213727,1781597445000,-543.27,0.00019178,2]
[425213733,1781597445000,-313.34885197,0.000196,2]
[425213731,1781597445000,-543.27,0.00019452,2]
[425213736,1781597445000,-543.27,0.00019726,2]
[425213724,1781597445000,-186.0,0.00019123,2]
[425213725,1781597445000,-500.0,0.00019176,2]
[425213735,1781597445000,-152.71,0.00019724,2]
[425213719,1781597445000,-3697.005192,0.00019094,2]
[425213721,1781597445000,-1840.0,0.00019123,2]
[425213766,1781597448000,-1660.06935172,0.0002,2]
[425213765,1781597448000,-19462.76331876,0.0002,2]
[425213767,1781597448000,-10346.70482812,0.0002,2]
[425213835,1781597978000,751.75,0.00024657,120]
[425213922,1781598632000,-151.0,0.00019,2]
[425213920,1781598632000,-1063.79,0.000184,2]
[425213917,1781598632000,-188.10514197,0.000184,2]
[425213916,1781598632000,-188.10514198,0.000184,2]
[425213911,1781598632000,-180.02700405,0.00017635,2]
[425213908,1781598632000,-208.34432352,0.00016659,2]
[425213909,1781598632000,-436.06753283,0.00016659,2]
[425213915,1781598632000,-191.0,0.00017863,3]
[425213914,1781598632000,-128.95514608,0.00017802,2]
[425213913,1781598632000,-27.25577187,0.00017802,2]
[425213907,1781598632000,-71.01826008,0.00016659,2]
[425213912,1781598632000,-239.0,0.000178,2]
[425213906,1781598632000,-244.44226065,0.00016659,2]
[425213904,1781598632000,-68.00241066,0.00016123,2]
[425213903,1781598632000,-445.0,0.00016123,2]
[425213905,1781598632000,-117.99758934,0.00016123,2]
[425213928,1781598632000,-151.0,0.00019,2]
[425213926,1781598632000,-151.0,0.00019,2]
[425213910,1781598632000,-226.2504255,0.00017222,2]
[425213924,1781598632000,-151.0,0.00019,2]
[425213919,1781598632000,-188.10514197,0.000184,2]
[425213943,1781598632000,-445.0,0.00019123,2]
[425213945,1781598632000,-531.695682,0.00019697,2]
[425213944,1781598632000,-186.0,0.00019123,2]
[425213942,1781598632000,-160.0,0.0001912,2]
[425213940,1781598632000,-160.0,0.0001912,2]
[425213941,1781598632000,-160.0,0.0001912,2]
[425213946,1781598632000,-2159.5146914,0.00019697,2]
[425213939,1781598632000,-160.0,0.0001912,2]
[425213937,1781598632000,-160.0,0.0001912,2]
[425213938,1781598632000,-769.86702256,0.0001912,2]
[425213936,1781598632000,-166.0,0.00019,2]
[425213935,1781598632000,-200.0,0.00019,2]
[425213933,1781598632000,-151.0,0.00019,2]
[425213930,1781598632000,-151.0,0.00019,2]
[425213932,1781598632000,-151.0,0.00019,2]
[425213934,1781598632000,-296.85248665,0.00019,2]
[425213931,1781598632000,-151.0,0.00019,2]
[425213947,1781598632000,-921.32196063,0.00019724,2]
[425213950,1781598633000,-183.53621281,0.00019799,2]
[425213948,1781598633000,-200.0,0.00019797,2]
[425213949,1781598633000,-983.15025932,0.00019798,2]
[425213955,1781598633000,-81.2224753,0.00019799,2]
[425213956,1781598633000,-500.0,0.00019799,2]
[425213957,1781598633000,-500.0,0.00019799,2]
[425213952,1781598633000,-500.0,0.00019799,2]
[425213951,1781598633000,-500.0,0.00019799,2]
[425213958,1781598633000,-500.0,0.00019799,2]
[425213959,1781598633000,-209.89092548,0.000198,2]
[425213953,1781598633000,-415.57008159,0.00019799,2]
[425213960,1781598633000,-9694.40796695,0.000198,2]
[425213954,1781598633000,-418.7775247,0.00019799,2]
[425213970,1781598639000,-459.493326,0.00019,2]
[425213972,1781598639000,-269.04080537,0.00019,2]
[425213973,1781598639000,-734.95919463,0.00019,2]
[425213975,1781598639000,-1004.0,0.00019,2]
[425213971,1781598639000,-544.506674,0.00019,2]
[425213976,1781598639000,-1004.0,0.00019,2]
[425213978,1781598639000,-13808.76117596,0.000198,2]
[425213977,1781598639000,-250.52802638,0.00019,2]
[425213979,1781598639000,-15010.07035566,0.000198,2]
[425213980,1781598639000,-3420.75966606,0.000198,2]
[425213974,1781598639000,-1004.0,0.00019,2]
[425214028,1781598647000,-622.01,0.00016143,2]
[425214030,1781598691000,-793.99,0.00016143,2]
[425214033,1781598707000,-1840.0,0.00016143,2]
[425214087,1781599831000,-1840.0,0.00016143,2]
[425214088,1781599831000,-445.0,0.00016143,2]
[425214089,1781599831000,-209.05075327,0.00017635,2]
[425214090,1781599831000,-156.0,0.0001789,3]
[425214094,1781599831000,-160.0,0.0001914,2]
[425214092,1781599831000,-160.0,0.0001914,2]
[425214091,1781599831000,-160.0,0.0001914,2]
[425214095,1781599831000,-160.0,0.0001914,2]
[425214093,1781599831000,-769.86702256,0.0001914,2]
[425214098,1781599832000,-177.2318941,0.0001936,2]
[425214096,1781599832000,-1840.0,0.00019143,2]
[425214100,1781599832000,-1245.45256816,0.0001936,2]
[425214099,1781599832000,-398.7717615,0.0001936,2]
[425214097,1781599832000,-445.0,0.00019143,2]
[425214136,1781599839000,-289.38948955,0.0001959,2]
[425214137,1781599839000,-497.13071793,0.0001959,2]
[425214134,1781599839000,-374.18345034,0.0001936,2]
[425214139,1781599839000,-500.0,0.00019599,2]
[425214135,1781599839000,-269.85725482,0.0001936,2]
[425214138,1781599839000,-214.72844708,0.00019599,2]
[425214140,1781599839000,-390.89905712,0.00019599,2]
[425214147,1781599839000,-500.0,0.00019599,2]
[425214142,1781599839000,-500.0,0.00019599,2]
[425214150,1781599839000,-500.0,0.00019599,2]
[425214143,1781599839000,-500.0,0.00019599,2]
[425214148,1781599839000,-467.47598068,0.00019599,2]
[425214144,1781599839000,-500.0,0.00019599,2]
[425214145,1781599839000,-500.0,0.00019599,2]
[425214146,1781599839000,-500.0,0.00019599,2]
[425214149,1781599839000,-500.0,0.00019599,2]
[425214151,1781599839000,-97.74319963,0.00019599,2]
[425214141,1781599839000,-500.0,0.00019599,2]
[425214173,1781599846000,-500.0,0.00019599,2]
[425214180,1781599846000,-19980.82451584,0.000196,2]
[425214176,1781599846000,-500.0,0.00019599,2]
[425214172,1781599846000,-500.0,0.00019599,2]
[425214177,1781599846000,-500.0,0.00019599,2]
[425214170,1781599846000,-402.25680037,0.00019599,2]
[425214171,1781599846000,-257.10791075,0.00019599,2]
[425214179,1781599846000,-10605.03506179,0.000196,2]
[425214175,1781599846000,-500.0,0.00019599,2]